fUSD/lending_fUSD_20250209
["ID","MTS","AMOUNT","RATE_DAILY","PERIOD"]
[352509346,1739143840638,-500.0,9.996e-05,2]
[352509348,1739143840648,-500.0,9.996e-05,2]
[352509350,1739143840657,-505.3407101,9.996e-05,2]
[352509352,1739143840668,-500.0,9.996e-05,2]
[352509354,1739143840677,-500.0,9.996e-05,2]
[352509356,1739143840686,-500.0,9.996e-05,2]
[352509358,1739143840695,-345.3,9.996e-05,2]
[352509360,1739143840705,-500.0,9.996e-05,2]
[352509362,1739143840714,-500.0,9.996e-05,2]
[352509364,1739143840723,-500.0,9.996e-05,2]
[352509366,1739143840732,-500.0,9.996e-05,2]
[352509368,1739143840742,-500.0,9.996e-05,2]
[352509370,1739143840751,-500.0,9.996e-05,2]
[352509372,1739143840761,-500.0,9.996e-05,2]
[352509374,1739143840770,-500.0,9.996e-05,2]
[352509376,1739143840779,-500.0,9.996e-05,2]
[352509378,1739143840789,-500.0,9.996e-05,2]
[352509380,1739143840798,-500.0,9.996e-05,2]
[352509382,1739143840807,-500.0,9.996e-05,2]
[352509384,1739143840816,-508.31770099,9.996e-05,2]
[352509386,1739143840826,-500.0,9.996e-05,2]
[352509388,1739143840835,-636.48130207,9.996e-05,2]
[352509390,1739143840844,-500.0,9.996e-05,2]
[352509392,1739143840853,-190.37123564,9.996e-05,2]
[352509394,1739143840862,-500.0,9.996e-05,2]
[352509396,1739143840872,-199.021326,9.996e-05,2]
[352509398,1739143840881,-500.0,9.996e-05,2]
[352509400,1739143840890,-502.94715284,9.996e-05,2]
[352509402,1739143840900,-500.0,9.996e-05,2]
[352509404,1739143840909,-500.0,9.996e-05,2]
[352509406,1739143840919,-500.0,9.996e-05,2]
[352509408,1739143840928,-200.0,9.997e-05,2]
[352509410,1739143840938,-302.14899691,9.998e-05,2]
[352509412,1739143840947,-500.0,9.998e-05,2]
[352509414,1739143840957,-500.0,9.998e-05,2]
[352509416,1739143840966,-500.0,9.998e-05,2]
[352509418,1739143840976,-379.98916299,9.998e-05,2]
[352509420,1739143840986,-500.0,9.999e-05,2]
[352509422,1739143840995,-500.0,9.999e-05,2]
[352509424,1739143841005,-500.0,9.999e-05,2]
[352509426,1739143841014,-500.0,9.999e-05,2]
[352509428,1739143841024,-500.0,9.999e-05,2]
[352509430,1739143841034,-500.0,9.999e-05,2]
[352509432,1739143841043,-500.0,9.999e-05,2]
[352509434,1739143841052,-364.513587,9.999e-05,2]
[352509435,1739143841062,-500.0,9.999e-05,2]
[352509436,1739143841072,-500.0,9.999e-05,2]
[352509437,1739143841082,-500.0,9.999e-05,2]
[352509438,1739143841092,-500.0,9.999e-05,2]
[352509439,1739143841102,-264.83,9.999e-05,2]
[352509440,1739143841111,-500.0,9.999e-05,2]
[352509441,1739143841121,-340.27,9.999e-05,2]
[352509442,1739143841131,-620.711493,9.999e-05,2]
[352509443,1739143841140,-646.24,9.999e-05,2]
[352509444,1739143841149,-500.0,9.999e-05,2]
[352509445,1739143841159,-500.0,9.999e-05,2]
[352509447,1739143841169,-500.0,9.999e-05,2]
[352509449,1739143841179,-500.0,9.999e-05,2]
[352509451,1739143841189,-500.0,9.999e-05,2]
[352509453,1739143841199,-500.0,9.999e-05,2]
[352509455,1739143841209,-500.0,9.999e-05,2]
[352509457,1739143841219,-500.0,9.999e-05,2]
[352509459,1739143841229,-500.0,9.999e-05,2]
[352509461,1739143841240,-500.0,9.999e-05,2]
[352509463,1739143841250,-500.0,9.999e-05,2]
[352509465,1739143841259,-500.0,9.999e-05,2]
[352509467,1739143841269,-500.0,9.999e-05,2]
[352509469,1739143841279,-500.0,9.999e-05,2]
[352509471,1739143841289,-500.0,9.999e-05,2]
[352509473,1739143841298,-500.0,9.999e-05,2]
[352509475,1739143841308,-500.0,9.999e-05,2]
[352509477,1739143841319,-500.0,9.999e-05,2]
[352509479,1739143841335,-500.0,9.999e-05,2]
[352509482,1739143841346,-500.0,9.999e-05,2]
[352509483,1739143841355,-500.0,9.999e-05,2]
[352509485,1739143841365,-500.0,9.999e-05,2]
[352509488,1739143841374,-500.0,9.999e-05,2]
[352509490,1739143841384,-500.0,9.999e-05,2]
[352509491,1739143841394,-500.0,9.999e-05,2]
[352509494,1739143841405,-500.0,9.999e-05,2]
[352509495,1739143841414,-500.0,9.999e-05,2]
[352509498,1739143841424,-500.0,9.999e-05,2]
[352509499,1739143841434,-500.0,9.999e-05,2]
[352509501,1739143841443,-500.0,9.999e-05,2]
[352509503,1739143841452,-500.0,9.999e-05,2]
[352509505,1739143841461,-500.0,9.999e-05,2]
[352509507,1739143841471,-500.0,9.999e-05,2]
[352509509,1739143841480,-500.0,9.999e-05,2]
[352509511,1739143841489,-500.0,9.999e-05,2]
[352509513,1739143841498,-500.0,9.999e-05,2]
[352509515,1739143841507,-713.28,9.999e-05,2]
[352509517,1739143841516,-951375.60634236,0.0001,2]
[352509519,1739143841525,-234316.70105695,0.0001,2]
[352509521,1739143841535,-1851.16993165,0.0001,2]
[352509523,1739143841544,-2621.16891465,0.0001,2]
[352509525,1739143841553,-3000.0,0.0001,2]
[352509527,1739143841564,-1688.0,0.0001,2]
[352509529,1739143841573,-2054.56,0.0001,3]
[352509531,1739143841584,-183.33312646,0.0001,2]
[352509533,1739143841593,-115711.33496391,0.0001,2]
[352509535,1739143841603,-164.98686894,0.0001,2]
[352509537,1739143841612,-237.73652363,0.0001,2]
[352509539,1739143841621,-2387330.95452671,0.0001,2]
[352509571,1739143841911,-500.0,9.995e-05,2]
[352509573,1739143841921,-500.0,9.996e-05,2]
[352509575,1739143841930,-208511.90888581,0.0001,2]
[352509577,1739143841940,-2837.97722,0.0001,2]
[352509579,1739143841949,-200.0,0.0001,3]
[352509581,1739143841958,-691481.28682672,0.0001,2]
[352509583,1739143841968,-151.0,0.0001,2]
[352509585,1739143841977,-151.0,0.0001,2]
[352509587,1739143841986,-449983.19078268,0.0001,2]
[352509589,1739143841995,-214.5896672,0.0001,2]
[352509591,1739143842004,-93363.17267643,0.0001,2]
[352509593,1739143842014,-318.62100768,0.0001,2]
[352509595,1739143842023,-272.05767542,0.0001,2]
[352509597,1739143842032,-1106.93245989,0.0001,2]
[352509599,1739143842041,-371.736713,0.0001,2]
[352509601,1739143842050,-318.49657698,0.0001,2]
[352509602,1739143842060,-318.49657698,0.0001,2]
[352509605,1739143842070,-249.10365791,0.000101,2]
[352509607,1739143842081,-314.18,0.00010132,2]
[352509609,1739143842090,-500.0,0.00010132,2]
[352509611,1739143842100,-500.0,0.00010132,2]
[352509613,1739143842109,-500.0,0.00010132,2]
[352509615,1739143842118,-500.0,0.00010132,2]
[352509617,1739143842127,-500.0,0.00010132,2]
[352509619,1739143842136,-500.0,0.00010132,2]
[352509621,1739143842145,-500.0,0.00010132,2]
[352509623,1739143842154,-500.0,0.00010132,2]
[352509625,1739143842163,-500.0,0.00010132,2]
[352509627,1739143842172,-500.0,0.00010132,2]
[352509629,1739143842181,-500.0,0.00010132,2]
[352509631,1739143842190,-500.0,0.00010132,2]
[352509633,1739143842200,-500.0,0.00010132,2]
[352509635,1739143842209,-500.0,0.00010132,2]
[352509637,1739143842218,-500.0,0.00010132,2]
[352509639,1739143842228,-500.0,0.00010132,2]
[352509641,1739143842238,-500.0,0.00010132,2]
[352509643,1739143842248,-500.0,0.00010132,2]
[352509645,1739143842258,-500.0,0.00010132,2]
[352509647,1739143842267,-500.0,0.00010132,2]
[352509649,1739143842276,-500.0,0.00010132,2]
[352509650,1739143842285,-602.85,0.00010132,2]
[352509652,1739143842294,-500.0,0.00010132,2]
[352509655,1739143842304,-500.0,0.00010132,2]
[352509657,1739143842313,-500.0,0.00010132,2]
[352509658,1739143842323,-500.0,0.00010132,2]
[352509660,1739143842332,-500.0,0.00010132,2]
[352509662,1739143842342,-500.0,0.00010132,2]
[352509664,1739143842351,-500.0,0.00010132,2]
[352509666,1739143842360,-500.0,0.00010132,2]
[352509668,1739143842369,-500.0,0.00010132,2]
[352509670,1739143842378,-500.0,0.00010132,2]
[352509672,1739143842392,-554.68,0.00010132,2]
[352509674,1739143842401,-500.0,0.00010132,2]
[352509676,1739143842410,-500.0,0.00010132,2]
[352509678,1739143842419,-500.0,0.00010132,2]
[352509680,1739143842431,-256.9,0.00010132,2]
[352509682,1739143842440,-500.0,0.00010133,2]
[352509684,1739143842450,-289.61050697,0.00010133,2]
[352509686,1739143842459,-500.0,0.00010133,2]
[352509688,1739143842470,-500.0,0.00010133,2]
[352509690,1739143842479,-500.0,0.00010133,2]
[352509692,1739143842488,-500.0,0.00010133,2]
[352509694,1739143842497,-500.0,0.00010133,2]
[352509696,1739143842507,-500.0,0.00010133,2]
[352509698,1739143842515,-500.0,0.00010133,2]
[352509700,1739143842525,-506.27412042,0.00010133,2]
[352509702,1739143842534,-500.0,0.00010133,2]
[352509704,1739143842543,-500.0,0.00010133,2]
[352509706,1739143842553,-500.0,0.00010133,2]
[352509708,1739143842562,-500.0,0.00010133,2]
[352509710,1739143842571,-500.0,0.00010133,2]
[352509712,1739143842581,-500.0,0.00010133,2]
[352509714,1739143842591,-500.0,0.00010133,2]
[352509716,1739143842600,-500.0,0.00010133,2]
[352509718,1739143842610,-500.0,0.00010133,2]
[352509720,1739143842619,-500.0,0.00010133,2]
[352509722,1739143842628,-500.0,0.00010133,2]
[352509724,1739143842637,-500.0,0.00010133,2]
[352509726,1739143842647,-500.0,0.00010133,2]
[352509728,1739143842656,-500.0,0.00010133,2]
[352509730,1739143842665,-500.0,0.00010133,2]
[352509732,1739143842675,-500.0,0.00010133,2]
[352509734,1739143842686,-153.57588535,0.00010133,2]
[352509736,1739143842696,-500.0,0.00010133,2]
[352509738,1739143842705,-500.0,0.00010133,2]
[352509740,1739143842714,-500.0,0.00010133,2]
[352509742,1739143842724,-500.0,0.00010133,2]
[352509744,1739143842734,-500.0,0.00010133,2]
[352509746,1739143842743,-500.0,0.00010133,2]
[352509748,1739143842753,-500.0,0.00010133,2]
[352509750,1739143842764,-500.0,0.00010133,2]
[352509752,1739143842773,-500.0,0.00010133,2]
[352509754,1739143842782,-500.0,0.00010133,2]
[352509756,1739143842791,-500.0,0.00010133,2]
[352509757,1739143842801,-500.0,0.00010133,2]
[352509760,1739143842810,-500.0,0.00010133,2]
[352509761,1739143842821,-491.15,0.00010133,2]
[352509763,1739143842836,-500.0,0.00010133,2]
[352509766,1739143842846,-500.0,0.00010133,2]
[352509768,1739143842856,-500.0,0.00010133,2]
[352509770,1739143842869,-500.0,0.00010133,2]
[352509771,1739143842878,-500.0,0.00010133,2]
[352509773,1739143842888,-500.0,0.00010133,2]
[352509775,1739143842898,-500.0,0.00010133,2]
[352509777,1739143842908,-500.0,0.00010133,2]
[352509779,1739143842917,-500.0,0.00010133,2]
[352509781,1739143842926,-500.0,0.00010133,2]
[352509783,1739143842935,-500.0,0.00010133,2]
[352509785,1739143842945,-500.0,0.00010133,2]
[352509788,1739143842955,-500.0,0.00010133,2]
[352509790,1739143842964,-500.0,0.00010133,2]
[352509793,1739143842974,-500.0,0.00010133,2]
[352509796,1739143842984,-500.0,0.00010133,2]
[352509798,1739143842994,-500.0,0.00010133,2]
[352509800,1739143843003,-500.0,0.00010133,2]
[352509802,1739143843012,-500.0,0.00010133,2]
[352509804,1739143843021,-500.0,0.00010133,2]
[352509806,1739143843030,-500.0,0.00010133,2]
[352509808,1739143843040,-518.2,0.00010133,2]
[352509810,1739143843050,-500.0,0.00010133,2]
[352509812,1739143843059,-615.06,0.00010133,2]
[352509814,1739143843069,-500.0,0.00010133,2]
[352509816,1739143843081,-500.0,0.00010133,2]
[352509819,1739143843091,-500.0,0.00010133,2]
[352509821,1739143843100,-555.89,0.00010133,2]
[352509824,1739143843109,-500.0,0.00010133,2]
[352509827,1739143843118,-500.0,0.00010133,2]
[352509830,1739143843127,-500.0,0.00010133,2]
[352509833,1739143843137,-627.77,0.00010133,2]
[352509836,1739143843146,-500.0,0.00010133,2]
[352509839,1739143843156,-500.0,0.00010133,2]
[352509842,1739143843165,-482.89707508,0.00010133,2]
[352509844,1739143843175,-500.0,0.00010133,2]
[352509846,1739143843184,-500.0,0.00010133,2]
[352509848,1739143843193,-500.0,0.00010133,2]
[352509850,1739143843202,-500.0,0.00010133,2]
[352509852,1739143843211,-500.0,0.00010133,2]
[352509855,1739143843221,-500.0,0.00010133,2]
[352509857,1739143843230,-500.0,0.00010133,2]
[352509860,1739143843239,-605.03,0.00010133,2]
[352509862,1739143843249,-522.83,0.00010133,2]
[352509864,1739143843259,-500.0,0.00010133,2]
[352509866,1739143843269,-410.56087969,0.00010133,2]
[352509868,1739143843278,-518.14247985,0.00010133,2]
[352509870,1739143843288,-322.59,0.00010133,2]
[352509872,1739143843297,-500.0,0.00010133,2]
[352509874,1739143843307,-248.05,0.00010133,2]
[352509876,1739143843316,-500.0,0.00010133,2]
[352509878,1739143843326,-276.24539262,0.00010133,2]
[352509880,1739143843335,-226.47,0.00010133,2]
[352509882,1739143843344,-562.68403842,0.00010133,2]
[352509884,1739143843353,-500.0,0.00010133,2]
[352509886,1739143843362,-500.0,0.00010133,2]
[352509888,1739143843372,-402.75108672,0.00010133,2]
[352509890,1739143843381,-413.36,0.00010133,2]
[352509892,1739143843391,-471.78,0.00010133,2]
[352509893,1739143843405,-500.0,0.00010133,2]
[352509896,1739143843414,-500.0,0.00010133,2]
[352509898,1739143843423,-385.16,0.00010133,2]
[352509899,1739143843432,-500.0,0.00010133,2]
[352509901,1739143843442,-500.0,0.00010133,2]
[352509904,1739143843451,-500.0,0.00010133,2]
[352509905,1739143843460,-564.14,0.00010133,2]
[352509908,1739143843470,-573.67,0.00010133,2]
[352509910,1739143843481,-500.0,0.00010133,2]
[352509912,1739143843490,-500.0,0.00010133,2]
[352509913,1739143843499,-500.0,0.00010133,2]
[352509915,1739143843508,-500.0,0.00010133,2]
[352509917,1739143843518,-500.0,0.00010133,2]
[352509919,1739143843527,-500.0,0.00010133,2]
[352509921,1739143843537,-500.0,0.00010133,2]
[352509924,1739143843547,-500.0,0.00010133,2]
[352509926,1739143843556,-500.0,0.00010133,2]
[352509927,1739143843566,-500.0,0.00010133,2]
[352509929,1739143843576,-500.0,0.00010133,2]
[352509931,1739143843586,-500.0,0.00010133,2]
[352509949,1739143843740,-500.0,0.00010133,2]
[352509951,1739143843751,-500.0,0.00010133,2]
[352509953,1739143843761,-394.46,0.00010133,2]
[352509955,1739143843771,-500.0,0.00010133,2]
[352509957,1739143843780,-500.0,0.00010133,2]
[352509959,1739143843789,-500.0,0.00010133,2]
[352509961,1739143843798,-511.26777548,0.00010133,2]
[352509963,1739143843807,-500.0,0.00010133,2]
[352509965,1739143843817,-198.22113913,0.00010136,2]
[352509967,1739143843827,-364.513587,0.00010136,2]
[352509969,1739143843836,-500.0,0.00010136,2]
[352509971,1739143843845,-500.0,0.00010136,2]
[352509973,1739143843855,-500.0,0.00010136,2]
[352509975,1739143843864,-620.711493,0.00010136,2]
[352509977,1739143843873,-646.24,0.00010136,2]
[352509979,1739143843883,-500.0,0.00010136,2]
[352509981,1739143843892,-500.0,0.00010136,2]
[352509983,1739143843902,-500.0,0.00010136,2]
[352509985,1739143843911,-500.0,0.00010136,2]
[352509987,1739143843921,-222.31856224,0.00010136,2]
[352509989,1739143843931,-217.55,0.00010136,2]
[352509991,1739143843940,-358.22,0.00010136,2]
[352509993,1739143843949,-500.0,0.00010136,2]
[352509994,1739143843957,-500.0,0.00010136,2]
[352509995,1739143843966,-500.0,0.00010136,2]
[352509996,1739143843975,-500.0,0.00010136,2]
[352509997,1739143843984,-500.0,0.00010136,2]
[352509998,1739143843993,-500.0,0.00010136,2]
[352509999,1739143844002,-500.0,0.00010136,2]
[352510000,1739143844011,-500.0,0.00010136,2]
[352510001,1739143844020,-500.0,0.00010136,2]
[352510002,1739143844029,-500.0,0.00010136,2]
[352510003,1739143844046,-500.0,0.00010136,2]
[352510005,1739143844055,-500.0,0.00010136,2]
[352510006,1739143844065,-526.01,0.00010136,2]
[352510008,1739143844074,-500.0,0.00010136,2]
[352510010,1739143844086,-500.0,0.00010136,2]
[352510012,1739143844096,-500.0,0.00010136,2]
[352510015,1739143844106,-500.0,0.00010136,2]
[352510016,1739143844116,-171.62245856,0.00010136,2]
[352510018,1739143844126,-500.0,0.00010136,2]
[352510020,1739143844135,-500.0,0.00010136,2]
[352510022,1739143844145,-500.0,0.00010136,2]
[352510024,1739143844154,-500.0,0.00010136,2]
[352510026,1739143844163,-500.0,0.00010136,2]
[352510028,1739143844173,-500.0,0.00010136,2]
[352510030,1739143844182,-500.0,0.00010136,2]
[352510032,1739143844192,-500.0,0.00010136,2]
[352510034,1739143844201,-713.28,0.00010136,2]
[352510036,1739143844211,-339.74,0.00010137,2]
[352510039,1739143844221,-175.0,0.00010137,2]
[352510041,1739143844231,-500.79307297,0.00010173,2]
[352510043,1739143844241,-500.58998637,0.00010173,2]
[352510044,1739143844250,-500.0,0.00010173,2]
[352510046,1739143844259,-156.83618952,0.00010173,2]
[352510048,1739143844269,-318.49657698,0.0001019,2]
[352510050,1739143844278,-500.0,0.00010199,2]
[352510052,1739143844287,-1795248.44446138,0.000102,2]
[352510120,1739143844953,-7519.57343777,0.000102,2]
[352510122,1739143844965,-606.39830741,0.000102,2]
[352510124,1739143844976,-1761.27370276,0.000102,2]
[352510126,1739143844987,-492.08415605,0.000102,2]
[352510129,1739143845007,-539.99,9.995e-05,2]
[352510131,1739143845017,-18686.41000001,0.000102,2]
[352510146,1739143845153,-500.0,9.995e-05,2]
[352510148,1739143845163,-557.85154074,9.995e-05,2]
[352510151,1739143845182,-16.90845926,9.995e-05,2]
[352510153,1739143845191,-500.0,9.996e-05,2]
[352510155,1739143845201,-1424.55364059,0.000102,2]
[352510258,1739143846203,-500.0,9.995e-05,2]
[352510771,1739145032416,-737.27,8.219e-05,2]
[352510772,1739145032426,-150.0,8.835e-05,2]
[352510773,1739145032437,-1556.07000001,8.836e-05,2]
[352510774,1739145032449,-4348.16319999,8.836e-05,2]
[352510775,1739145032460,-2926.95067098,8.836e-05,2]
[352510776,1739145032473,-14076.72046706,8.836e-05,2]
[352510777,1739145032486,-1225.36146196,8.836e-05,2]
[352510778,1739145032495,-398.2706,8.836e-05,2]
[352510779,1739145032505,-1082.916,8.836e-05,2]
[352510780,1739145032515,-3718.32299921,8.973e-05,2]
[352510781,1739145032538,-1281.67700079,8.973e-05,2]
[352510782,1739145032547,-150.0,9.479e-05,2]
[352510783,1739145032558,-1000.0,9.508e-05,2]
[352510784,1739145032568,-400.25,9.526e-05,2]
[352510785,1739145032578,-71.78090921,9.552e-05,2]
[352510786,1739145032590,-90.81909079,9.552e-05,2]
[352510787,1739145032600,-187.99,9.565e-05,2]
[352510788,1739145032611,-500.0,9.995e-05,2]
[352510789,1739145032622,-513.54043969,9.995e-05,2]
[352510790,1739145032633,-500.0,9.995e-05,2]
[352510791,1739145032643,-500.0,9.995e-05,2]
[352510792,1739145032653,-210.91962675,9.995e-05,2]
[352510793,1739145032669,-289.08037325,9.995e-05,2]
[352510794,1739145032679,-28.83090787,9.995e-05,2]
[352510795,1739145032691,-471.16909213,9.995e-05,2]
[352510796,1739145032701,-230.09345394,9.995e-05,2]
[352510797,1739145032713,-176.90869367,9.995e-05,2]
[352510798,1739145032722,-500.0,9.995e-05,2]
[352510799,1739145032732,-612.78,9.995e-05,2]
[352510800,1739145032742,-578.18,9.995e-05,2]
[352510801,1739145032751,-116.86194737,9.995e-05,2]
[352510802,1739145032763,-383.13805263,9.995e-05,2]
[352510803,1739145032773,-500.0,9.995e-05,2]
[352510804,1739145032783,-500.0,9.995e-05,2]
[352510805,1739145032792,-326.4,9.995e-05,2]
[352510806,1739145032801,-68.26775499,9.995e-05,2]
[352510807,1739145032817,-431.73224501,9.995e-05,2]
[352510808,1739145032826,-500.0,9.995e-05,2]
[352510810,1739145032836,-500.0,9.995e-05,2]
[352510811,1739145032845,-500.0,9.995e-05,2]
[352510812,1739145032857,-500.0,9.995e-05,2]
[352510813,1739145032867,-500.0,9.995e-05,2]
[352510814,1739145032877,-500.0,9.995e-05,2]
[352510815,1739145032886,-500.0,9.995e-05,2]
[352510816,1739145032898,-500.0,9.995e-05,2]
[352510817,1739145032907,-500.0,9.995e-05,2]
[352510819,1739145032917,-447.12375499,9.995e-05,2]
[352510821,1739145032931,-52.87624501,9.995e-05,2]
[352510823,1739145032941,-500.0,9.995e-05,2]
[352510825,1739145032950,-500.0,9.995e-05,2]
[352510827,1739145032960,-500.0,9.995e-05,2]
[352510829,1739145032971,-500.0,9.995e-05,2]
[352510831,1739145032981,-500.0,9.995e-05,2]
[352510833,1739145032990,-329.32375499,9.995e-05,2]
[352510949,1739145038208,-170.67624501,9.995e-05,2]
[352510950,1739145038218,-500.0,9.995e-05,2]
[352510951,1739145038227,-500.0,9.995e-05,2]
[352510952,1739145038238,-150.99,9.995e-05,2]
[352510953,1739145038247,-2040.52,9.995e-05,2]
[352510954,1739145038256,-9999.99,9.995e-05,2]
[352510955,1739145038265,-999.99,9.995e-05,2]
[352510956,1739145038274,-2000.0,0.0001,2]
[352510957,1739145038283,-173.87363712,0.000101,2]
[352510958,1739145038293,-226.42365266,0.000101,2]
[352510959,1739145038302,-309.75595225,0.000101,2]
[352510960,1739145038312,-500.0,0.00010132,2]
[352510961,1739145038321,-153.33212922,0.00010199,2]
[352510962,1739145038331,-182.256793,0.00010199,2]
[352510963,1739145038341,-206.903831,0.00010199,2]
[352510964,1739145038350,-500.0,0.00010199,2]
[352510965,1739145038359,-500.0,0.00010199,2]
[352510966,1739145038368,-500.0,0.00010199,2]
[352510967,1739145038377,-500.0,0.00010199,2]
[352510968,1739145038387,-500.0,0.00010199,2]
[352510969,1739145038396,-500.0,0.00010199,2]
[352510970,1739145038406,-500.0,0.00010199,2]
[352510971,1739145038416,-500.0,0.00010199,2]
[352510972,1739145038425,-500.0,0.00010199,2]
[352510973,1739145038434,-500.0,0.00010199,2]
[352510974,1739145038444,-500.0,0.00010199,2]
[352510975,1739145038453,-544.63,0.00010199,2]
[352510976,1739145038465,-500.0,0.00010199,2]
[352510977,1739145038474,-202.21610097,0.00010199,2]
[352510978,1739145038483,-500.0,0.00010199,2]
[352510979,1739145038493,-500.0,0.00010199,2]
[352510980,1739145038502,-500.0,0.00010199,2]
[352510981,1739145038511,-500.0,0.00010199,2]
[352510982,1739145038520,-211.61719273,0.00010199,2]
[352510983,1739145038529,-500.0,0.00010199,2]
[352510984,1739145038539,-500.0,0.00010199,2]
[352510986,1739145038548,-500.0,0.00010199,2]
[352510988,1739145038557,-328.81694041,0.00010199,2]
[352510997,1739145038635,-171.18305959,0.00010199,2]
[352510999,1739145038644,-500.0,0.00010199,2]
[352511001,1739145038654,-503.8,0.00010199,2]
[352511003,1739145038663,-500.0,0.00010199,2]
[352511005,1739145038672,-500.0,0.00010199,2]
[352511007,1739145038682,-500.0,0.00010199,2]
[352511009,1739145038691,-618.65,0.00010199,2]
[352511011,1739145038700,-500.0,0.00010199,2]
[352511013,1739145038710,-500.0,0.00010199,2]
[352511015,1739145038719,-335.26867763,0.00010199,2]
[352511017,1739145038729,-500.0,0.00010199,2]
[352511019,1739145038738,-500.0,0.00010199,2]
[352511021,1739145038748,-406.48766647,0.00010199,2]
[352511042,1739145038890,-93.51233353,0.00010199,2]
[352511045,1739145038899,-500.0,0.00010199,2]
[352511048,1739145038912,-500.0,0.00010199,2]
[352511051,1739145038921,-500.0,0.00010199,2]
[352511053,1739145038930,-500.0,0.00010199,2]
[352511055,1739145038941,-500.0,0.00010199,2]
[352511057,1739145038955,-524.02991976,0.00010199,2]
[352511059,1739145038964,-500.0,0.00010199,2]
[352511061,1739145038973,-500.0,0.00010199,2]
[352511063,1739145038982,-500.0,0.00010199,2]
[352511065,1739145038991,-500.0,0.00010199,2]
[352511067,1739145039002,-500.0,0.00010199,2]
[352511069,1739145039011,-500.0,0.00010199,2]
[352511071,1739145039020,-500.0,0.00010199,2]
[352511072,1739145039030,-500.0,0.00010199,2]
[352511074,1739145039039,-500.0,0.00010199,2]
[352511076,1739145039050,-501.26,0.00010199,2]
[352511078,1739145039058,-500.0,0.00010199,2]
[352511080,1739145039068,-500.0,0.00010199,2]
[352511082,1739145039076,-500.0,0.00010199,2]
[352511084,1739145039085,-404.36571763,0.00010199,2]
[352511085,1739145039102,-500.0,0.00010199,2]
[352511087,1739145039111,-500.0,0.00010199,2]
[352511089,1739145039126,-500.0,0.00010199,2]
[352511091,1739145039135,-264.4214081,0.00010199,2]
[352511093,1739145039145,-500.0,0.00010199,2]
[352511095,1739145039154,-525.0,0.00010199,2]
[352511097,1739145039163,-500.0,0.00010199,2]
[352511100,1739145039172,-500.0,0.00010199,2]
[352511101,1739145039181,-500.0,0.00010199,2]
[352511104,1739145039190,-500.0,0.00010199,2]
[352511105,1739145039199,-394.44,0.00010199,2]
[352511107,1739145039208,-500.0,0.00010199,2]
[352511109,1739145039218,-500.0,0.00010199,2]
[352511111,1739145039227,-500.0,0.00010199,2]
[352511113,1739145039236,-500.0,0.00010199,2]
[352511116,1739145039246,-500.0,0.00010199,2]
[352511118,1739145039256,-500.0,0.00010199,2]
[352511119,1739145039266,-500.0,0.00010199,2]
[352511121,1739145039275,-500.0,0.00010199,2]
[352511124,1739145039284,-592.39,0.00010199,2]
[352511126,1739145039294,-500.0,0.00010199,2]
[352511128,1739145039303,-500.0,0.00010199,2]
[352511130,1739145039313,-500.0,0.00010199,2]
[352511132,1739145039322,-500.0,0.00010199,2]
[352511134,1739145039332,-500.0,0.00010199,2]